bitfinex-derivatives/quotes_SOLF0:USTF0_20240824
["timestamp","ask_amount","ask_price","bid_price","bid_amount"]
[1724482193906,3.28533162,154.17,154.13,7.98264693]
[1724482195008,3.2416,154.16,154.13,0.04264693]
[1724482196108,3.28533162,154.17,154.14,7.94]
[1724482198406,0.04403162,154.17,154.14,11.1818]
[1724482207922,3.28543162,154.17,154.14,7.94]
[1724482210617,3.28543162,154.17,154.14,11.1819]
[1724482213545,0.04403162,154.17,154.14,11.1819]
[1724482213723,0.04403162,154.17,154.15,3.2416]
[1724482214832,0.04403162,154.17,154.13,0.04264693]
[1724482215528,3.2416,154.16,154.13,0.04264693]
[1724482216029,0.04403162,154.17,154.13,7.98264693]
[1724482216236,0.04403162,154.17,154.15,7.94]
[1724482216837,0.04403162,154.17,154.14,3.2418]
[1724482217230,0.04403162,154.17,154.13,0.04264693]
[1724482217436,3.2416,154.16,154.13,0.04264693]
[1724482218141,3.2417,154.15,154.13,0.04264693]
[1724482219632,3.2419,154.14,154.13,0.04264693]
[1724482222938,3.2417,154.15,154.13,0.04264693]
[1724482224342,3.2419,154.14,154.13,0.04264693]
[1724482227750,0.04403162,154.17,154.13,0.04264693]
[1724482228238,3.2416,154.16,154.13,0.04264693]
[1724482228441,0.04403162,154.17,154.13,0.04264693]
[1724482228647,3.2415,154.16,154.13,0.04264693]
[1724482229047,0.04403162,154.17,154.13,0.04264693]
[1724482229446,3.2416,154.16,154.13,0.04264693]
[1724482229647,0.04403162,154.17,154.13,0.04264693]
[1724482230943,3.2418,154.15,154.13,0.04264693]
[1724482231554,0.04403162,154.17,154.13,7.98264693]
[1724482232247,3.2417,154.15,154.13,0.04264693]
[1724482233671,3.2419,154.14,154.13,0.04264693]
[1724482235852,3.2417,154.15,154.13,0.04264693]
[1724482241964,3.2416,154.16,154.13,0.04264693]
[1724482242257,3.2416,154.16,154.13,3.28464693]
[1724482244056,3.28533162,154.17,154.14,3.2418]
[1724482246051,3.28533162,154.17,154.13,3.28464693]
[1724482248962,3.2415,154.16,154.13,0.04264693]
[1724482249182,0.04403162,154.17,154.13,7.98264693]
[1724482249657,3.28533162,154.17,154.13,11.22464693]
[1724482250563,0.04403162,154.17,154.13,7.98264693]
[1724482251164,3.28543162,154.17,154.13,11.22464693]
[1724482252866,0.04403162,154.17,154.13,0.04264693]
[1724482254267,3.2416,154.16,154.13,0.04264693]
[1724482256671,3.2417,154.15,154.13,0.04264693]
[1724482257975,3.2415,154.16,154.13,0.04264693]
[1724482259069,3.2415,154.16,154.13,3.28464693]
[1724482260971,3.2415,154.16,154.13,0.04264693]
[1724482261870,3.2415,154.16,154.13,3.28464693]
[1724482262579,3.2417,154.15,154.13,0.04264693]
[1724482264368,0.04403162,154.17,154.13,0.04264693]
[1724482264690,7.98403162,154.17,154.13,0.04264693]
[1724482265379,3.2419,154.14,154.13,0.04264693]
[1724482269685,11.1819,154.14,154.13,0.04264693]
[1724482270082,12.5521,154.14,154.13,0.04264693]
[1724482270283,3.2425,154.11,154.08,11.1831]
[1724482270698,9.3102,154.14,154.03,255.22701265]
[1724482270875,7.94,154.13,154.07,11.1832]
[1724482271182,3.2425,154.11,154.07,11.1832]
[1724482271485,0.04790755,154.11,154.07,7.94]
[1724482271877,3.2429,154.1,154.07,7.94]
[1724482272689,3.243,154.09,154.07,7.94]
[1724482272896,3.26474746,154.08,154.03,25.92]
[1724482273097,3.34905967,154.07,154.03,25.92]
[1724482273282,3.2437,154.06,154.03,25.92]
[1724482273789,3.29107337,154.07,154.03,29.1641]
[1724482274091,0.04767337,154.07,154.03,33.86]
[1724482275390,0.04767337,154.07,154.03,25.92]
[1724482275804,3.29117337,154.07,154.03,29.1642]
[1724482275989,0.04767337,154.07,154.03,25.92]
[1724482276392,3.2436,154.06,154.03,25.92]
[1724482276592,0.04767337,154.07,154.03,33.86]
[1724482276994,0.04767337,154.07,154.04,3.2439]
[1724482278390,0.04767337,154.07,154.03,37.1042]
[1724482278594,0.04767337,154.07,154.03,29.1642]
[1724482278794,3.29117337,154.07,154.03,29.1642]
[1724482281301,0.04767337,154.07,154.04,3.2439]
[1724482282190,3.29107337,154.07,154.03,37.1041]
[1724482284306,3.29107337,154.07,154.03,29.1641]
[1724482284601,3.29107337,154.07,154.03,37.1041]
[1724482288700,3.29107337,154.07,154.03,29.1641]
[1724482288907,3.29107337,154.07,154.04,3.2439]
[1724482292902,0.04767337,154.07,154.06,7.94]
[1724482293207,1.3814,154.13,154.06,7.94]
[1724482293408,3.2424,154.12,154.09,7.94]
[1724482294108,1.3814,154.13,153.98,36.42217874]
[1724482294109,3.2425,154.11,154.07,11.1833]
[1724482294307,0.04932035,154.11,154.07,0.048221]
[1724482294610,3.2428,154.1,154.07,0.048221]
[1724482295301,3.2428,154.1,154.07,3.291521]
[1724482295814,3.29192035,154.11,154.07,3.291521]
[1724482296807,0.04932035,154.11,154.09,7.94]
[1724482298307,0.04932035,154.11,154.1,3.2427]
[1724482298709,0.04932035,154.11,154.09,11.1829]
[1724482299813,3.29192035,154.11,154.07,3.291521]
[1724482300012,3.29192035,154.11,154.07,11.231521]
[1724482303210,3.2427,154.1,154.07,7.988221]
[1724482310750,3.2427,154.1,154.07,11.231521]
[1724482313329,0.04932035,154.11,154.07,7.988221]
[1724482314351,3.29202035,154.11,154.08,3.2429]
[1724482315527,0.04932035,154.11,154.08,3.2429]
[1724482315728,0.04932035,154.11,154.08,11.1829]
[1724482316624,3.29202035,154.11,154.08,11.1829]
[1724482319932,0.04932035,154.11,154.08,11.1829]
[1724482322233,0.04932035,154.11,154.08,3.2429]
[1724482322437,0.04932035,154.11,154.08,11.1829]
[1724482322637,0.04932035,154.11,154.08,3.2429]
[1724482322932,0.04932035,154.11,154.09,3.243]
[1724482324460,0.04932035,154.11,154.1,11.1828]
[1724482326038,1.3776,154.18,154.1,7.94]
[1724482326237,3.19482454,154.17,154.13,7.94]
[1724482326434,3.2416,154.16,154.13,7.94]
[1724482326627,1.3776,154.18,154.13,11.182]
[1724482326838,1.3776,154.18,154.13,7.94]
[1724482327139,3.28819152,154.17,154.14,0.04642749]
[1724482327561,0.04679152,154.17,154.16,7.94]
[1724482328429,0.04679152,154.17,154.16,11.1815]
[1724482331335,0.04679152,154.17,154.14,0.04642749]
[1724482331841,3.28829152,154.17,154.14,0.04642749]
[1724482334850,7.94,154.16,154.14,0.04642749]
[1724482335935,0.04679152,154.17,154.06,1.3852]
[1724482335936,7.94,154.15,154.06,1.3852]
[1724482336250,1.3097,154.14,154.08,7.94]
[1724482336542,4.5519,154.14,154.09,11.1829]
[1724482336839,0.04684527,154.13,154.1,0.04151883]
[1724482337047,0.04684527,154.13,154.11,7.94]
[1724482337643,0.04684527,154.13,154.11,11.1826]
[1724482337844,0.04684527,154.13,154.11,7.94]
[1724482338445,0.04684527,154.13,154.1,3.28421883]
[1724482338650,0.04684527,154.13,154.1,0.04151883]
[1724482338851,3.28914527,154.13,154.1,0.04151883]
[1724482342950,0.04684527,154.13,154.1,0.04151883]
[1724482344553,0.04684527,154.13,154.1,3.28431883]
[1724482345852,3.28904527,154.13,154.1,0.04151883]
[1724482350957,3.2424,154.12,154.1,0.04151883]
[1724482351159,7.94,154.12,154.1,0.04151883]
[1724482351757,11.1824,154.12,154.1,0.04151883]
[1724482352766,3.2424,154.12,154.1,0.04151883]
[1724482364877,11.1826,154.11,154.1,0.04151883]
[1724482365873,3.2426,154.11,154.1,0.04151883]
[1724482366482,3.2424,154.12,154.1,0.04151883]
[1724482367280,1.37544527,154.13,154.1,0.04151883]
[1724482367781,1.37544527,154.13,154.1,3.28411883]
[1724482368079,0.04684527,154.13,154.1,3.28411883]
[1724482369069,11.22904527,154.13,154.1,0.04151883]
[1724482369674,7.98684527,154.13,154.1,0.04151883]
[1724482371280,0.04684527,154.13,154.1,0.04151883]
[1724482373971,3.28904527,154.13,154.1,0.04151883]
[1724482377485,3.2424,154.12,154.1,0.04151883]
[1724482379786,3.2426,154.11,154.1,0.04151883]
[1724482380988,3.2424,154.12,154.1,0.04151883]
[1724482381786,1.29784527,154.13,154.1,0.04151883]
[1724482381984,0.04684527,154.13,154.1,0.04151883]
[1724482382183,0.04684527,154.13,154.11,3.2425]
[1724482382784,0.04684527,154.13,154.1,3.28421883]
[1724482384291,0.04684527,154.13,154.12,7.94]
[1724482384890,0.04684527,154.13,154.12,11.1824]
[1724482389288,2.6218,154.21,154.15,3.2417]
[1724482389496,10.5618,154.21,154.15,11.1817]
[1724482389793,3.2409,154.2,154.15,11.1817]
[1724482390417,0.04666597,154.19,154.16,0.04705411]
[1724482391091,3.28766597,154.19,154.16,0.04705411]
[1724482391392,7.98666597,154.19,154.16,0.04705411]
[1724482391886,3.2411,154.18,154.16,0.04705411]
[1724482392293,0.04666597,154.19,154.16,0.04705411]
[1724482393295,3.28766597,154.19,154.16,0.04705411]
[1724482394595,3.2411,154.18,154.16,0.04705411]
[1724482404116,7.94,154.18,154.16,0.04705411]
[1724482404403,3.2413,154.17,154.16,0.04705411]
[1724482406302,3.2412,154.18,154.16,0.04705411]
[1724482406506,0.04666597,154.19,154.16,0.04705411]
[1724482407101,3.28766597,154.19,154.16,3.28855411]
[1724482407795,3.28766597,154.19,154.16,0.04705411]
[1724482409115,3.28766597,154.19,154.16,3.28845411]
[1724482411013,0.04666597,154.19,154.16,3.28845411]
[1724482411317,0.04666597,154.19,154.16,7.98705411]
[1724482412113,0.04666597,154.19,154.17,3.2412]
[1724482414710,0.04666597,154.19,154.16,0.04705411]
[1724482414914,3.2411,154.18,154.16,0.04705411]
[1724482420124,3.2413,154.17,154.16,0.04705411]
[1724482421424,3.2413,154.18,154.16,0.04705411]
[1724482424226,3.28756597,154.19,154.16,0.04705411]
[1724482425327,7.98666597,154.19,154.16,0.04705411]
[1724482426330,3.2413,154.18,154.16,0.04705411]
[1724482432129,3.28766597,154.19,154.16,0.04705411]
[1724482432940,0.04666597,154.19,154.16,3.28855411]
[1724482433442,0.04666597,154.19,154.16,0.04705411]
[1724482433830,3.28776597,154.19,154.16,0.04705411]
[1724482434442,3.2413,154.18,154.16,0.04705411]
[1724482438740,3.28766597,154.19,154.16,0.04705411]
[1724482439238,0.04666597,154.19,154.16,7.98705411]
[1724482439939,0.04666597,154.19,154.17,3.2413]
[1724482440437,0.04666597,154.19,154.18,7.94]
[1724482445747,0.04666597,154.19,154.18,11.1811]
[1724482446345,1.278,154.26,154.21,3.2405]
[1724482446543,1.278,154.26,154.22,7.94]
[1724482447143,3.2398,154.25,154.22,7.98483421]
[1724482447845,3.2398,154.25,154.22,0.04483421]
[1724482448546,1.32125104,154.26,154.22,0.04483421]
[1724482448946,3.24,154.24,154.22,0.04483421]
[1724482455247,3.2397,154.25,154.22,0.04483421]
[1724482456554,1.32125104,154.26,154.22,3.28503421]
[1724482456555,4.56075104,154.26,154.22,3.28503421]
[1724482457678,4.56075104,154.26,154.22,11.22503421]
[1724482457852,4.56075104,154.26,154.23,3.2401]
[1724482459058,3.2397,154.25,154.22,3.28503421]
[1724482463259,4.56075104,154.26,154.23,3.2401]
[1724482464355,4.56075104,154.26,154.22,3.28503421]
[1724482465358,3.2396,154.25,154.22,3.28503421]
[1724482467861,4.56075104,154.26,154.23,3.24]
[1724482473467,3.2397,154.25,154.22,3.28513421]
[1724482474371,4.56075104,154.26,154.23,3.24]
[1724482474672,1.32125104,154.26,154.22,0.04483421]
[1724482474870,9.26125104,154.26,154.22,0.04483421]
[1724482475868,3.24,154.24,154.22,0.04483421]
[1724482479370,3.2396,154.25,154.22,0.04483421]
[1724482479571,1.32125104,154.26,154.23,7.94]
[1724482481279,4.56075104,154.26,154.23,11.18]
[1724482481579,3.28275104,154.26,154.23,11.18]
[1724482482974,3.28275104,154.26,154.23,7.94]
[1724482482975,0.04325104,154.26,154.23,7.94]
[1724482484381,0.04325104,154.26,154.24,3.2398]
[1724482485983,3.28275104,154.26,154.23,11.18]
[1724482487783,3.2396,154.25,154.22,3.28503421]
[1724482487985,0.04325104,154.26,154.22,11.22503421]
[1724482488390,0.04325104,154.26,154.24,7.94]
[1724482489282,0.04325104,154.26,154.24,11.1798]
[1724482489485,0.04325104,154.26,154.24,7.94]
[1724482489884,3.28275104,154.26,154.24,7.94]
[1724482492887,0.04325104,154.26,154.22,0.04483421]
[1724482493093,0.04325104,154.26,154.23,7.94]
[1724482493593,0.04325104,154.26,154.23,11.1799]
[1724482494586,3.28265104,154.26,154.23,11.1799]
[1724482495492,0.04325104,154.26,154.23,11.1799]
[1724482495992,3.28275104,154.26,154.23,11.1799]
[1724482497290,3.2397,154.25,154.22,0.04483421]
[1724482497792,3.2399,154.24,154.22,0.04483421]
[1724482500493,3.2397,154.25,154.22,0.04483421]
[1724482503086,3.28285104,154.26,154.22,3.28513421]
[1724482503290,3.28285104,154.26,154.23,7.94]
[1724482504892,3.2397,154.25,154.23,7.94]
[1724482507992,3.28265104,154.26,154.23,7.94]
[1724482509104,3.28265104,154.26,154.23,11.1801]
[1724482510903,0.04325104,154.26,154.24,3.2397]
[1724482511102,0.04325104,154.26,154.25,7.94]
[1724482511792,0.04325104,154.26,154.25,11.1796]
[1724482516400,0.04325104,154.26,154.25,7.94]
[1724482516601,0.04325104,154.26,154.24,3.2398]
[1724482517305,0.04325104,154.26,154.23,11.18]
[1724482517515,3.28275104,154.26,154.23,3.24]
[1724482517903,0.04325104,154.26,154.24,11.1798]
[1724482525810,0.04325104,154.26,154.24,3.2398]
[1724482526016,0.04325104,154.26,154.25,7.94]
[1724482526206,0.04325104,154.26,154.25,11.1796]
[1724482530410,0.04325104,154.26,154.25,3.2396]
[1724482530711,0.04325104,154.26,154.25,11.1796]
[1724482531113,0.04325104,154.26,154.25,3.2396]
[1724482531914,0.04325104,154.26,154.24,11.1798]
[1724482532715,3.28265104,154.26,154.22,3.28493421]
[1724482533018,3.28265104,154.26,154.22,0.04483421]
[1724482533516,3.28265104,154.26,154.22,7.98483421]
[1724482534115,3.28265104,154.26,154.22,0.04483421]
[1724482534415,3.28265104,154.26,154.23,3.24]
[1724482537719,3.2397,154.25,154.22,0.04483421]
[1724482538018,0.04325104,154.26,154.22,7.98483421]
[1724482538420,3.28275104,154.26,154.22,11.22493421]
[1724482539009,3.28275104,154.26,154.23,3.2401]
[1724482541122,3.28275104,154.26,154.22,11.22503421]
[1724482541513,3.2397,154.25,154.22,7.98483421]
[1724482541822,0.04325104,154.26,154.22,0.04483421]
[1724482542016,1.33195104,154.26,154.22,0.04483421]
[1724482542613,3.24,154.24,154.22,0.04483421]
[1724482542816,9.2697,154.25,154.22,0.04483421]
[1724482543320,3.2398,154.24,154.22,0.04483421]
[1724482547524,3.2401,154.23,154.22,0.04483421]
[1724482551123,3.2408,154.2,154.18,49.47974936]
[1724482552124,3.28888727,154.21,154.18,57.41974936]
[1724482552924,0.04828727,154.21,154.19,7.94]
[1724482554148,3.28878727,154.21,154.18,57.41974936]
[1724482555930,3.2407,154.2,154.18,57.41974936]
[1724482561427,0.04828727,154.21,154.19,7.94]
[1724482562222,0.04828727,154.21,154.2,3.2407]
[1724482564136,0.04828727,154.21,154.19,11.1808]
[1724482564529,3.28878727,154.21,154.18,52.72074936]
[1724482564739,3.28878727,154.21,154.18,60.66074936]
[1724482564939,0.04828727,154.21,154.18,60.66074936]
[1724482567238,3.28878727,154.21,154.18,60.66074936]
[1724482569242,3.28878727,154.21,154.18,57.41974936]
[1724482570140,3.2407,154.2,154.18,57.41974936]
[1724482570336,3.2407,154.2,154.18,7.94]
[1724482573237,3.28878727,154.21,154.18,7.94]
[1724482573888,3.28878727,154.21,154.18,11.181]
[1724482577847,3.28878727,154.21,154.18,3.241]
[1724482578040,3.28878727,154.21,154.18,11.181]
[1724482581244,0.04828727,154.21,154.18,11.181]
[1724482583545,0.04828727,154.21,154.19,3.2408]
[1724482587851,0.04828727,154.21,154.2,7.94]
[1724482589447,0.04828727,154.21,154.2,11.1807]
[1724482594751,0.04828727,154.21,154.2,3.2407]
[1724482595152,0.04828727,154.21,154.17,0.04683661]
[1724482595454,0.04828727,154.21,154.17,7.98683661]
[1724482595649,3.28888727,154.21,154.17,11.22803661]
[1724482596956,3.241,154.19,154.17,0.04683661]
[1724482599154,3.241,154.19,154.17,7.98683661]
[1724482602461,3.2407,154.2,154.17,11.22803661]
[1724482602657,3.2407,154.2,154.18,7.94]
[1724482604158,3.2409,154.19,154.17,0.04683661]
[1724482604554,3.2407,154.2,154.17,0.04683661]
[1724482609064,3.2409,154.19,154.17,0.04683661]
[1724482611257,3.2408,154.2,154.17,0.04683661]
[1724482612253,0.04828727,154.21,154.17,0.04683661]
[1724482612254,3.2409,154.19,154.17,0.04683661]
[1724482612461,3.2409,154.19,154.17,7.98683661]
[1724482613359,3.2409,154.19,154.17,0.04683661]
[1724482614157,0.04828727,154.21,154.17,0.04683661]
[1724482614158,3.2411,154.18,154.17,0.04683661]
[1724482616363,3.2419,154.15,154.12,3.2423]
[1724482616564,3.2419,154.15,154.08,2.6606]
[1724482616867,3.2419,154.15,154.12,7.94]
[1724482617569,3.28970367,154.15,154.12,7.98556034]
[1724482618464,0.04780367,154.15,154.13,7.94]
[1724482618666,0.04780367,154.15,154.12,3.28776034]
[1724482618872,0.04780367,154.15,154.12,7.98556034]
[1724482619108,3.28970367,154.15,154.12,7.98556034]
[1724482619472,0.04780367,154.15,154.12,7.98556034]
[1724482619667,0.04780367,154.15,154.14,7.94]
[1724482621375,0.04780367,154.15,154.12,0.04556034]
[1724482621665,0.04780367,154.15,154.12,7.98556034]
[1724482622267,3.28960367,154.15,154.12,11.22786034]
[1724482623399,0.04780367,154.15,154.13,11.182]
[1724482624966,0.04780367,154.15,154.14,3.2419]
[1724482625166,0.04780367,154.15,154.14,11.1819]
[1724482629164,3.9148,154.2,154.17,3.2412]
[1724482629369,3.9148,154.2,154.17,7.94]
[1724482629567,7.1556,154.2,154.17,7.94]
[1724482629776,3.9148,154.2,154.17,7.94]
[1724482630171,3.95793917,154.2,154.17,7.98591711]
[1724482631383,3.2409,154.19,154.17,7.98591711]
[1724482632781,3.2409,154.19,154.17,0.04591711]
[1724482632996,3.2411,154.18,154.17,0.04591711]
[1724482636084,3.241,154.19,154.17,0.04591711]
[1724482637882,4.53713917,154.2,154.17,3.28721711]
[1724482638080,1.29643917,154.2,154.17,11.22721711]
[1724482638580,4.53713917,154.2,154.17,11.22721711]
[1724482639473,1.29643917,154.2,154.17,11.22721711]
[1724482642185,1.29643917,154.2,154.18,3.2411]
[1724482642483,1.29643917,154.2,154.17,7.98591711]
[1724482642888,4.53733917,154.2,154.17,7.98591711]
[1724482643983,3.2411,154.18,154.17,0.04591711]
[1724482651695,7.94,154.18,154.1,7.94]
[1724482652588,3.2419,154.15,154.12,0.04515354]
[1724482653794,3.2419,154.15,154.12,7.98515354]
[1724482654398,3.28980587,154.16,154.13,7.94]
[1724482655402,3.28980587,154.16,154.13,11.1821]
[1724482655595,0.04830587,154.16,154.15,7.94]
[1724482658907,3.28990587,154.16,154.13,3.2421]
[1724482659098,3.28990587,154.16,154.14,7.94]
[1724482659407,0.04830587,154.16,154.14,7.94]
[1724482660600,0.04830587,154.16,154.15,7.94]
[1724482660999,1.285,154.23,154.15,7.94]
[1724482661203,7.94,154.25,154.18,7.94]
[1724482661403,3.2407,154.21,154.18,7.94]
[1724482661903,3.23270477,154.23,154.17,11.1812]
[1724482662204,0.04196759,154.22,154.18,0.04795842]
[1724482662397,3.2557145,154.21,154.18,0.04795842]
[1724482663300,3.2409,154.19,154.18,0.04795842]
[1724482663521,0.04196759,154.22,154.18,0.04795842]
[1724482663694,0.04196759,154.22,154.18,7.98795842]
[1724482664598,3.2406,154.21,154.18,7.98795842]
[1724482667403,0.04196759,154.22,154.18,0.04795842]
[1724482668507,3.2408,154.2,154.18,0.04795842]
[1724482669303,3.2405,154.21,154.19,7.94]
[1724482672414,3.2406,154.2,154.18,0.04795842]
[1724482674107,3.2408,154.19,154.18,0.04795842]
[1724482675807,3.2406,154.21,154.18,0.04795842]
[1724482676011,0.04196759,154.22,154.18,0.04795842]
[1724482677306,3.2408,154.2,154.18,0.04795842]
[1724482681813,3.2408,154.19,154.18,0.04795842]
[1724482711940,2.6801,154.21,154.14,3.2418]
[1724482712137,7.94,154.19,154.14,3.2418]
[1724482712739,19.46,154.19,154.06,22.69087604]
[1724482712935,0.04892003,154.14,154.11,0.04457957]
[1724482713134,3.18568474,154.13,154.07,7.94]
[1724482713346,0.04495793,154.14,154.11,0.04642815]
[1724482713534,3.19741853,154.13,154.11,0.04642815]
[1724482714443,3.2424,154.12,154.11,0.04642815]
[1724482714836,7.94,154.13,154.03,5.9283]
[1724482714837,3.2433,154.08,154.03,5.9283]
[1724482715046,3.2433,154.08,154.04,7.94]
[1724482715843,3.28545965,154.08,154.04,7.94]
[1724482717232,3.28545965,154.08,154.04,3.244]
[1724482717434,3.28545965,154.08,154.05,7.94]
[1724482718432,3.28545965,154.08,154.04,3.244]
[1724482718634,3.28545965,154.08,154.06,7.94]
[1724482719745,3.2434,154.07,154.05,7.94]
[1724482722149,3.28535965,154.08,154.05,7.94]
[1724482723743,3.28535965,154.08,154.04,3.2439]
[1724482723945,3.28535965,154.08,154.06,7.94]
[1724482725845,3.2433,154.07,154.03,2.6842]
[1724482726152,3.2433,154.07,154.05,7.94]
[1724482731249,3.2433,154.07,154.04,3.244]
[1724482731457,3.2433,154.07,154.05,7.94]
[1724482732954,3.2436,154.06,154.03,2.6842]
[1724482733140,3.2436,154.06,154.05,7.94]
[1724482734949,3.2436,154.06,154.03,5.9284]
[1724482735151,3.2436,154.06,154.04,7.94]
[1724482738752,3.2438,154.05,154.03,2.6842]
[1724482738955,3.2438,154.05,154.04,7.94]
[1724482740861,3.2438,154.05,154.02,3.2443]
[1724482741063,3.2438,154.05,154.04,7.94]
[1724482741761,3.2436,154.06,154.04,7.94]
[1724482742155,0.04215965,154.08,153.99,28.4696]
[1724482742356,0.04218218,154.05,154.02,7.94]
[1724482742659,3.244,154.04,154.02,7.94]
[1724482742853,0.04218218,154.05,154.02,7.94]
[1724482743267,0.04218218,154.05,154.02,11.1844]
[1724482744261,3.28608218,154.05,154.02,11.1844]
[1724482752876,3.28608218,154.05,154.02,3.2444]
[1724482753174,3.28608218,154.05,154.02,11.1844]
[1724482756376,3.28608218,154.05,154.02,3.2444]
[1724482756772,3.28608218,154.05,154.02,11.1844]
[1724482757669,3.28608218,154.05,154.02,3.2444]
[1724482758069,3.28608218,154.05,154.02,11.1844]
[1724482758268,3.244,154.04,154.02,7.94]
[1724482758468,0.04218218,154.05,154.02,7.94]
[1724482759276,3.28608218,154.05,154.01,7.94]
[1724482759977,3.28608218,154.05,154.01,11.1844]
[1724482760273,3.28608218,154.05,154.02,7.94]
[1724482761176,3.28608218,154.05,154.02,11.1844]
[1724482764677,3.28608218,154.05,154.03,7.94]
[1724482765771,0.04218218,154.05,154.04,7.94]
[1724482767073,0.04218218,154.05,154.04,11.184]
[1724482769176,0.04218218,154.05,154.04,3.244]
[1724482769376,0.04218218,154.05,154.04,11.184]
[1724482771969,3.2428,154.1,154.06,3.2434]
[1724482772175,3.19869392,154.12,154.07,7.94]
[1724482772503,3.2429,154.1,154.05,7.94]
[1724482772672,3.2429,154.1,154.06,3.2434]
[1724482773275,3.2429,154.1,154.06,3.29008175]
[1724482773276,3.28647058,154.1,154.06,3.29008175]
[1724482774478,3.243,154.09,154.06,3.29008175]
[1724482787382,3.28627058,154.1,154.07,11.1833]
[1724482789677,3.28627058,154.1,154.07,3.2433]
[1724482792383,3.243,154.09,154.06,11.23018175]
[1724482792585,3.243,154.09,154.06,3.29018175]
[1724482794687,3.2433,154.07,154.06,0.04668175]
[1724482797084,3.2433,154.07,153.85,16.52121741]
[1724482797276,1.3359,154.11,153.98,7.94]
[1724482797481,7.94,154.05,153.98,7.94]
[1724482797686,3.2444,154.03,153.98,11.1852]
[1724482798186,0.04598936,154.02,153.98,11.1852]
[1724482798886,0.04598936,154.02,154.0,7.94]
[1724482799578,0.04598936,154.02,153.99,3.245]
[1724482799895,0.04598936,154.02,153.99,7.94]
[1724482800290,0.04598936,154.02,154.01,7.94]
[1724482800684,1.3359,154.11,154.01,7.94]
[1724482800880,3.2433,154.08,154.05,7.94]
[1724482801087,11.1263713,154.12,154.07,7.94]
[1724482801287,3.1863713,154.12,154.07,7.94]
[1724482801490,3.2429,154.09,154.07,7.94]
[1724482801682,7.94,154.14,154.07,7.94]
[1724482801683,0.04833888,154.1,154.07,7.94]
[1724482803282,3.29113888,154.1,154.07,7.94]
[1724482804391,0.04833888,154.1,154.07,7.94]
[1724482805986,0.04833888,154.1,154.09,7.94]
[1724482807980,3.29103888,154.1,154.09,7.94]
[1724482808183,3.29103888,154.1,154.07,11.1832]
[1724482808887,3.29103888,154.1,154.07,7.94]
[1724482809082,3.2429,154.09,154.07,7.94]
[1724482810190,3.29113888,154.1,154.07,7.94]
[1724482810691,3.29113888,154.1,154.09,7.94]
[1724482810692,0.04833888,154.1,154.09,7.94]
[1724482811485,0.04833888,154.1,154.09,11.1829]
[1724482813693,0.04833888,154.1,154.08,3.2431]
[1724482816001,0.04833888,154.1,154.07,7.94]
[1724482817302,0.04833888,154.1,154.08,3.243]
[1724482818404,0.04833888,154.1,154.07,3.2433]
[1724482818599,0.04833888,154.1,154.08,7.94]
[1724482820405,0.04833888,154.1,154.08,11.1831]
[1724482820707,0.04833888,154.1,154.08,3.2431]
[1724482824209,3.29103888,154.1,154.07,7.94]
[1724482824433,3.29103888,154.1,154.06,7.98529894]
[1724482824806,3.29103888,154.1,154.06,3.28879894]
[1724482825911,3.2429,154.09,154.06,3.28879894]
[1724482827103,3.2429,154.09,154.06,0.04529894]
[1724482827712,3.2432,154.08,154.06,0.04529894]
[1724482828301,3.2433,154.07,154.06,0.04529894]
[1724482828603,7.98833888,154.1,154.06,0.04529894]
[1724482828808,3.2433,154.08,154.06,0.04529894]
[1724482829004,0.04833888,154.1,154.06,0.04529894]
[1724482829312,0.04833888,154.1,154.07,7.94]
[1724482829841,3.29113888,154.1,154.07,7.94]
[1724482832405,3.29113888,154.1,154.06,3.28879894]
[1724482832611,3.29113888,154.1,154.06,11.22879894]
[1724482835421,3.243,154.09,154.06,7.98529894]
[1724482837315,3.243,154.09,154.06,11.22869894]
[1724482838511,3.29103888,154.1,154.06,11.22869894]
[1724482841422,0.04833888,154.1,154.08,3.2431]
[1724482841623,0.04833888,154.1,154.08,7.94]
[1724482842419,0.04833888,154.1,154.09,3.2429]
[1724482861327,1.3017,154.15,154.11,3.2423]
[1724482861528,1.3017,154.15,154.13,7.94]